bitfinex-derivatives/quotes_ETHF0:USTF0_20250317
["timestamp","ask_amount","ask_price","bid_price","bid_amount"]
[1742228104257,47.5958,1922.0,1921.9,2.42142]
[1742228104258,44.0078,1922.0,1921.9,2.42142]
[1742228104866,2.15404336,1922.1,1922.0,1.04066]
[1742228105169,2.15404336,1922.1,1922.0,2.48066]
[1742228106574,0.79924336,1922.1,1922.0,2.48066]
[1742228106972,0.00780336,1922.1,1922.0,4.98066]
[1742228107272,3.587,1922.7,1922.0,7.527]
[1742228107470,41.8403,1922.7,1922.6,1.04031]
[1742228107767,1.04039,1922.5,1922.3,3.2078]
[1742228107961,3.587,1922.5,1922.1,6.6265]
[1742228108158,1.04054,1922.3,1922.2,0.00780336]
[1742228108571,6.01084,1922.3,1922.2,0.00780336]
[1742228108872,6.01084,1922.3,1922.2,1.04835336]
[1742228109264,4.9703,1922.3,1922.2,1.04835336]
[1742228110366,3.587,1922.3,1922.2,1.04835336]
[1742228110873,1.39110336,1922.5,1922.4,1.04044]
[1742228111069,4.97810336,1922.5,1922.4,1.04044]
[1742228111471,6.01849336,1922.5,1922.4,2.35694]
[1742228111766,6.01849336,1922.5,1922.3,1.75906]
[1742228111964,6.01853336,1922.5,1922.3,1.75906]
[1742228112268,3.2078,1922.4,1922.2,1.04834336]
[1742228112472,4.9011,1922.3,1922.2,1.04834336]
[1742228113764,1.3141,1922.3,1922.2,1.04834336]
[1742228114078,0.00780336,1922.5,1922.4,1.04044]
[1742228114877,40.8,1922.7,1922.6,1.04034]
[1742228115175,1.3435,1922.8,1922.7,1.04028]
[1742228115568,42.1435,1922.8,1922.7,1.04028]
[1742228116273,43.18373,1922.8,1922.6,2.423]
[1742228116472,2.0487,1922.8,1922.4,6.6721]
[1742228116683,3.586,1923.5,1922.7,3.2078]
[1742228116978,46.21717608,1923.4,1923.2,1.03999]
[1742228117179,45.0912,1923.4,1923.2,1.03999]
[1742228117375,46.13113,1923.4,1923.2,1.03999]
[1742228117776,45.0912,1923.4,1923.2,1.03996]
[1742228118074,46.13112,1923.4,1923.2,1.03996]
[1742228118879,45.0912,1923.4,1923.1,1.04003]
[1742228119076,49.33893,1923.4,1923.1,1.04003]
[1742228119270,46.13113,1923.4,1923.2,1.04001]
[1742228119473,46.13113,1923.4,1923.1,1.04003]
[1742228119771,1.03996,1923.3,1923.1,1.04003]
[1742228120078,3.585,1923.2,1923.1,1.04003]
[1742228121184,3.585,1923.2,1923.0,2.4209]
[1742228121479,1.3739,1923.1,1922.7,3.2078]
[1742228121675,3.585,1923.0,1922.9,2.43507]
[1742228121876,3.585,1923.2,1923.1,1.04007]
[1742228122283,44.385,1923.2,1923.1,1.04007]
[1742228123079,45.7589,1923.2,1923.1,1.04007]
[1742228123275,45.7589,1923.2,1923.0,1.04008]
[1742228123481,46.79893,1923.2,1923.0,1.04008]
[1742228123781,46.79891,1923.2,1923.0,1.04008]
[1742228124184,3.2078,1923.1,1922.7,1.04026]
[1742228124384,3.2078,1923.1,1922.6,0.7145]
[1742228124385,8.1648,1923.0,1922.6,2.0257]
[1742228124579,1.04023,1922.8,1922.6,3.06602]
[1742228124884,4.957,1922.7,1922.6,2.35154]
[1742228125673,3.585,1922.7,1922.6,2.35154]
[1742228126785,1.372,1922.8,1922.7,1.04028]
[1742228126989,1.372,1922.8,1922.7,2.38578]
[1742228127778,1.372,1922.8,1922.7,1.3455]
[1742228127981,1.372,1922.8,1922.7,2.38578]
[1742228130281,1.372,1922.8,1922.7,1.3455]
[1742228132289,2.41223,1922.8,1922.7,1.3455]
[1742228133981,6.7918,1922.9,1922.7,1.3455]
[1742228134288,8.2368,1922.9,1922.7,2.38576]
[1742228134498,9.27697,1922.9,1922.8,0.6778]
[1742228134791,4.2583,1923.0,1922.8,3.06463]
[1742228134980,5.29846,1923.0,1922.8,3.06463]
[1742228135176,4.2583,1923.0,1922.9,2.39967]
[1742228135480,45.42403,1923.2,1923.0,1.04012]
[1742228135783,46.81933,1923.2,1923.1,1.3595]
[1742228136485,43.23533,1923.2,1923.1,1.3595]
[1742228136686,46.81933,1923.2,1923.1,1.3595]
[1742228137191,1.04011,1923.1,1922.9,1.04014]
[1742228137492,2.43541,1923.1,1922.9,2.39964]
[1742228137689,3.584,1923.0,1922.8,0.6778]
[1742228137885,1.04017,1922.9,1922.8,0.6778]
[1742228138186,1.04023,1922.8,1922.7,1.3595]
[1742228138389,4.62423,1922.8,1922.7,1.3595]
[1742228139280,4.9389,1922.8,1922.7,2.39978]
[1742228139484,3.584,1922.8,1922.7,2.39978]
[1742228141583,4.62423,1922.8,1922.7,2.39978]
[1742228141783,5.93693,1922.8,1922.7,2.39978]
[1742228142382,5.93693,1922.8,1922.7,1.3595]
[1742228142783,1.04028,1922.7,1922.6,0.677]
[1742228142985,1.04043,1922.5,1922.3,1.04046]
[1742228143284,4.62443,1922.5,1922.3,1.71956]
[1742228143489,1.04044,1922.4,1922.3,0.6791]
[1742228143681,4.24824,1922.4,1922.3,0.6791]
[1742228143885,1.0405,1922.3,1922.2,0.00780336]
[1742228144187,2.60155,1922.1,1921.6,0.6791]
[1742228144381,1.04088,1921.6,1921.3,1.041]
[1742228144587,4.62488,1921.6,1921.4,1.3838]
[1742228144888,46.76058,1921.6,1921.4,2.42477]
[1742228145189,49.96838,1921.6,1921.4,1.39160336]
[1742228145584,49.96838,1921.6,1921.4,0.00780336]
[1742228145790,1.04109,1921.2,1921.1,1.3838]
[1742228145989,4.62609,1921.2,1921.1,1.3838]
[1742228146189,7.83389,1921.2,1921.1,1.3838]
[1742228146694,1.04122,1921.0,1920.8,0.7245]
[1742228146992,3.584,1921.0,1920.8,0.7245]
[1742228147189,1.041,1921.4,1921.2,1.04109]
[1742228147384,3.584,1921.3,1921.2,1.04109]
[1742228148791,3.584,1921.3,1921.1,1.0411]
[1742228149192,5.0111,1921.3,1921.2,1.04109]
[1742228149393,6.05216,1921.3,1921.1,1.04111]
[1742228149588,1.04113,1921.2,1921.0,4.24898]
[1742228149788,1.4271,1921.2,1921.0,4.24898]
[1742228149990,1.4271,1921.2,1921.1,1.04115]
[1742228150490,5.67602,1921.2,1921.0,1.04118]
[1742228150694,3.585,1921.1,1921.0,1.04118]
[1742228151397,3.585,1921.1,1920.9,1.04122]
[1742228151696,1.4188,1921.0,1920.8,0.7245]
[1742228151888,3.586,1920.9,1920.8,1.76581]
[1742228153590,4.62726,1920.9,1920.8,0.7245]
[1742228153890,1.04131,1920.8,1920.7,1.04917336]
[1742228154090,1.3857,1920.8,1920.7,1.04917336]
[1742228154389,2.42701,1920.8,1920.7,0.00780336]
[1742228154696,5.63481,1920.8,1920.7,0.00780336]
[1742228156688,1.3857,1920.8,1920.7,0.00780336]
[1742228156893,1.3857,1920.8,1920.7,1.04917336]
[1742228157094,0.7122,1921.0,1920.7,0.00780336]
[1742228157294,3.586,1920.9,1920.8,1.04131]
[1742228157492,3.586,1920.9,1920.7,0.00780336]
[1742228157700,4.62727,1920.9,1920.7,1.04914336]
[1742228157897,1.04131,1920.8,1920.7,0.00780336]
[1742228158102,2.44891,1920.8,1920.7,0.00780336]
[1742228158498,1.4076,1920.8,1920.7,0.00780336]
[1742228158998,1.4076,1920.8,1920.7,1.04917336]
[1742228159299,2.44891,1920.8,1920.7,0.00780336]
[1742228160094,2.53510497,1920.8,1920.7,0.00780336]
[1742228160697,3.99379497,1920.8,1920.2,5.966]
[1742228160900,1.04159,1920.3,1920.1,1.04167]
[1742228161095,4.62859,1920.3,1920.1,1.04167]
[1742228161398,1.3491,1920.2,1919.7,6.6735]
[1742228161596,6.7948,1920.1,1919.6,1.10580972]
[1742228161796,1.04186,1919.8,1919.6,2.14773972]
[1742228162001,4.9361,1919.7,1919.6,1.74103]
[1742228162402,5.97801,1919.7,1919.6,0.6991]
[1742228162601,4.9361,1919.7,1919.5,1.04977336]
[1742228162803,1.04196,1919.6,1919.5,0.00780336]
[1742228163004,1.3155,1919.6,1919.5,1.04982336]
[1742228163200,1.3155,1919.6,1919.5,0.00780336]
[1742228163502,42.1155,1919.6,1919.5,1.04982336]
[1742228163705,40.8,1919.6,1919.5,1.04982336]
[1742228163905,40.8,1919.6,1919.5,0.00780336]
[1742228164116,42.1155,1919.6,1919.5,0.00780336]
[1742228164300,43.15746,1919.6,1919.5,0.00780336]
[1742228164699,44.70175399,1919.6,1919.0,2.38109]
[1742228164897,1.04217,1919.3,1919.0,2.38107]
[1742228165108,4.9025,1919.2,1919.0,2.38107]
[1742228165308,4.9025,1919.2,1919.1,1.04223]
[1742228165806,3.587,1919.2,1919.1,1.04223]
[1742228167212,3.587,1919.2,1919.0,2.38107]
[1742228167810,3.587,1919.2,1919.0,1.3388]
[1742228168010,5.97219,1919.2,1919.0,1.3388]
[1742228168708,5.97219,1919.2,1919.0,2.38109]
[1742228169315,1.04223,1919.1,1919.0,1.3388]
[1742228169515,1.04236,1918.9,1918.7,0.7034]
[1742228169701,3.589,1918.8,1918.7,3.06445]
[1742228169908,3.2078,1919.4,1919.2,1.04216]
[1742228170109,0.00780336,1919.0,1918.9,1.04234]
[1742228170415,3.589,1919.5,1919.4,1.04207]
[1742228171209,3.589,1919.5,1919.2,1.3186]
[1742228171415,2.35637,1919.4,1919.2,2.36078]
[1742228171708,4.9033,1919.4,1919.3,1.04212]
[1742228171915,3.589,1919.4,1919.3,1.04212]
[1742228172107,0.00780336,1919.5,1919.4,1.04207]
[1742228172307,3.59680336,1919.5,1919.4,1.04207]
[1742228172511,0.00780336,1919.5,1919.4,1.04207]
[1742228172707,3.59680336,1919.5,1919.4,1.04207]
[1742228173109,0.00780336,1919.5,1919.4,1.04207]
[1742228173309,0.00780336,1919.5,1919.4,2.36487]
[1742228173510,0.00780336,1919.5,1919.4,3.08557]
[1742228174619,1.38110336,1919.5,1919.4,3.08557]
[1742228174809,1.38110336,1919.5,1919.4,2.0435]
[1742228175011,2.42312336,1919.5,1919.4,1.3228]
[1742228175606,1.04218,1919.2,1919.1,0.00780001]
[1742228175916,4.63118,1919.2,1919.1,0.00780001]
[1742228176414,48.63898,1919.2,1919.1,0.00780001]
[1742228176618,48.63898,1919.2,1918.7,1.73034]
[1742228176619,52.78860236,1919.2,1918.7,1.3094]
[1742228176919,1.04236,1918.9,1918.7,2.35182]
[1742228177115,4.9334,1918.8,1918.7,2.35182]
[1742228177312,4.9334,1918.8,1918.7,1.3094]
[1742228177313,5.9758,1918.8,1918.7,1.3094]
[1742228177822,3.589,1918.8,1918.7,2.35185]
[1742228178522,6.7978,1919.0,1918.9,1.04234]
[1742228178921,3.2078,1919.0,1918.9,1.04234]
[1742228179218,3.59,1919.1,1919.0,1.04229]
[1742228179616,1.3931,1919.1,1919.0,1.04229]
[1742228179823,45.04995,1919.3,1918.8,2.60597]
[1742228179824,3.2078,1919.3,1918.8,2.60597]
[1742228180124,7.83992,1919.3,1919.2,1.04218]
[1742228180418,1.04218,1919.2,1919.0,1.04225]
[1742228180624,1.04223,1919.1,1919.0,1.04225]
[1742228180815,0.6858,1919.1,1919.0,1.04225]
[1742228181015,1.72806,1919.1,1918.8,1.325]
[1742228181215,2.39059,1919.0,1918.8,2.36736]
[1742228181412,1.04234,1918.9,1918.7,1.04242]
[1742228181721,1.04245,1918.7,1918.6,1.325]
[1742228181922,4.63245,1918.7,1918.6,1.325]
[1742228182118,0.6858,1918.7,1918.6,2.36751]
[1742228182324,3.2078,1918.9,1918.8,1.0424]
[1742228182620,1.72803,1919.1,1919.0,1.04229]
[1742228182816,3.59,1919.0,1918.7,1.325]
[1742228183123,4.9383,1919.0,1918.5,3.2078]
[1742228183317,3.2078,1918.9,1918.6,2.36749]
[1742228183515,4.9383,1918.8,1918.6,2.36749]
[1742228183716,4.9383,1918.8,1918.7,1.04245]
[1742228183919,4.9383,1918.8,1918.7,2.40105]
[1742228185023,3.59,1918.8,1918.7,2.40105]
[1742228185821,3.8936,1919.1,1918.7,1.3586]
[1742228186121,3.59,1919.0,1918.9,1.04234]
[1742228186322,6.00369,1919.0,1918.9,1.04234]
[1742228186621,6.00369,1919.0,1918.7,2.0559]
[1742228186622,4.9614,1919.0,1918.7,2.0559]
[1742228186923,4.9614,1919.0,1918.9,1.04234]
[1742228187318,3.8936,1919.1,1919.0,1.04229]
[1742228187521,5.0203,1919.2,1919.1,1.04223]
[1742228187819,7.83992,1919.3,1919.2,1.04218]
[1742228188025,1.04219,1919.2,1918.9,1.4529]
[1742228188227,3.59,1919.1,1919.0,1.04226]
[1742228189024,3.593,1919.2,1919.1,1.0422]
[1742228190616,4.6321,1919.4,1918.9,7.26655]
[1742228190926,1.04212,1919.3,1918.9,7.26655]
[1742228191118,1.04212,1919.3,1919.1,1.04221]
[1742228191318,3.59,1919.4,1919.2,1.04218]
[1742228191519,4.63211,1919.4,1919.2,1.04218]
[1742228191821,3.59,1919.4,1919.3,1.04212]
[1742228192924,3.59,1919.4,1919.3,2.46352]
[1742228193626,0.00780336,1919.5,1919.4,1.04207]
[1742228193821,0.00780336,1919.5,1919.4,2.43037]
[1742228197030,6.7978,1919.9,1919.8,1.04185]
[1742228197225,47.5978,1919.9,1919.8,1.04185]
[1742228198430,48.27,1919.9,1919.8,1.04185]
[1742228198628,49.3118,1919.9,1919.8,1.04185]
[1742228198824,1.04185,1919.8,1919.7,1.04969336]
[1742228199031,1.04185,1919.8,1919.7,0.00780336]
[1742228199223,1.74495,1919.8,1919.7,0.00780336]
[1742228199623,1.04198,1919.6,1919.3,1.4419]
[1742228199831,3.59,1919.5,1919.4,1.04207]
[1742228201223,4.3068,1919.5,1919.4,1.04207]
[1742228202531,7.5146,1919.5,1919.3,2.484]
[1742228202729,8.55663,1919.5,1919.4,1.04207]
[1742228203034,7.5146,1919.5,1919.4,1.04207]
[1742228203234,1.04207,1919.4,1919.3,2.48399]
[1742228203431,8.55664,1919.5,1919.4,1.04207]
[1742228203828,8.55664,1919.5,1919.3,2.484]
[1742228204436,2.46927,1919.4,1919.3,1.4419]
[1742228204735,1.04212,1919.3,1919.1,1.04219]
[1742228204934,1.4272,1919.2,1919.1,2.48503]
[1742228205424,6.7978,1919.3,1919.2,1.04218]
[1742228205627,6.7978,1919.3,1919.2,2.35018]
[1742228206733,8.1148,1919.3,1919.2,2.35018]
[1742228207031,6.7978,1919.3,1919.2,2.35018]
[1742228207232,3.59,1919.3,1919.2,2.35018]
[1742228207535,7.5146,1919.5,1919.4,1.04207]
[1742228207935,4.3068,1919.5,1919.4,1.04207]
[1742228208131,4.3068,1919.5,1919.4,3.09397]
[1742228208935,5.6174,1919.5,1919.4,3.09397]
[1742228209339,1.0421,1919.4,1919.0,12.16171]
[1742228209631,4.9006,1919.3,1919.2,1.04214]
[1742228210031,4.3068,1919.5,1919.4,1.04207]
[1742228210231,4.3068,1919.5,1919.3,2.42231]
[1742228210232,1.04207,1919.4,1919.3,2.42231]
[1742228210439,1.3106,1919.4,1919.3,2.42231]
[1742228210637,1.3106,1919.4,1919.3,1.3802]
[1742228210830,2.35271,1919.4,1919.2,1.04213]
[1742228211030,3.59,1919.3,1919.2,1.04213]
[1742228211231,4.9544,1919.3,1919.2,1.04213]
[1742228211836,3.59,1919.3,1919.2,1.04213]
[1742228212033,1.04199,1919.6,1919.5,1.04202]
[1742228212034,1.3644,1919.6,1919.5,1.04202]
[1742228212335,6.7978,1919.7,1919.6,1.04196]
[1742228212534,8.1622,1919.7,1919.6,1.04196]
[1742228213332,6.7978,1919.7,1919.6,2.43016]
[1742228214036,2.042,1919.8,1919.6,2.43016]
[1742228214037,5.632,1919.8,1919.7,1.04191]
[1742228214337,5.30945,1919.8,1919.7,2.39391]
[1742228214537,5.30945,1919.8,1919.7,1.352]
[1742228214733,4.2676,1919.8,1919.7,2.39391]
[1742228215137,8.51725,1919.8,1919.7,1.352]
[1742228215438,1.04191,1919.7,1919.5,1.7469]
[1742228215634,3.8854,1919.8,1919.6,1.352]
[1742228215839,3.589,1919.7,1919.6,2.39396]
[1742228218235,4.63091,1919.7,1919.6,1.352]
[1742228218437,1.04196,1919.6,1919.5,1.74688]
[1742228218738,1.04196,1919.6,1919.5,0.7049]
[1742228218938,1.04196,1919.6,1919.5,1.74692]
[1742228219137,1.04196,1919.6,1919.5,1.3351]
[1742228219338,3.2078,1919.6,1919.2,0.7168]
[1742228219543,3.589,1919.5,1919.4,1.04203]
[1742228219934,3.2078,1919.6,1919.5,1.04202]
[1742228220943,3.589,1919.7,1919.6,1.04196]
[1742228221745,3.589,1919.7,1919.6,2.47196]
[1742228223149,4.63091,1919.7,1919.6,2.47196]
[1742228223341,3.589,1919.7,1919.6,2.47196]
[1742228223741,3.589,1919.7,1919.2,3.9246]
[1742228223944,1.04203,1919.5,1919.2,2.1432]
[1742228224152,3.589,1919.4,1919.3,2.46852]
[1742228224347,3.589,1919.6,1919.5,1.04202]
[1742228224552,8.51626,1919.8,1919.3,2.46852]
[1742228224843,8.51626,1919.8,1919.6,1.04196]
[1742228224844,1.41,1919.7,1919.6,1.04196]
[1742228225442,1.04196,1919.6,1919.5,2.46837]
[1742228225747,6.04094,1919.7,1919.6,1.04196]
[1742228226050,1.04196,1919.6,1919.2,4.6454]
[1742228226250,3.589,1919.5,1919.4,1.04203]
[1742228226645,3.8854,1919.8,1919.7,1.04191]
[1742228226842,7.4744,1919.8,1919.7,1.04191]
[1742228227446,6.7968,1919.8,1919.7,1.04191]
[1742228227748,3.589,1919.8,1919.7,2.36901]
[1742228227947,40.8,1919.8,1919.7,2.36901]
[1742228228146,0.00780336,1920.0,1919.9,1.0418]
[1742228228545,41.84956336,1920.0,1919.8,2.36892]
[1742228228739,40.80780336,1920.0,1919.9,1.0418]
[1742228228940,44.39680336,1920.0,1919.9,2.3689]
[1742228229547,44.39680336,1920.0,1919.9,1.3271]
[1742228229751,44.39680336,1920.0,1919.9,2.3689]
[1742228230751,40.80780336,1920.0,1919.9,2.3689]
[1742228231258,0.00780336,1920.0,1919.9,2.3689]
[1742228232648,0.00780336,1920.0,1919.9,5.5767]
[1742228234758,3.36e-06,1920.0,1919.9,5.5767]
[1742228235161,3.36e-06,1920.0,1919.9,8.0767]
[1742228235654,4.92494,1920.8,1920.7,1.04137]
[1742228235655,0.6758,1920.8,1920.7,1.04137]
[1742228235853,5.35102,1921.0,1920.8,1.04128]
[1742228236050,4.2884,1921.0,1920.9,1.04126]
[1742228236248,4.37457163,1921.0,1920.9,1.04126]
[1742228236456,4.2884,1921.0,1920.9,1.04126]
[1742228236751,0.7004,1921.0,1920.9,1.04126]
[1742228236952,40.8,1921.0,1920.9,1.04126]
[1742228237355,0.00780336,1921.1,1921.0,1.0412]
[1742228238558,0.00780336,1921.1,1921.0,3.0436]
[1742228239353,0.7004,1921.5,1921.4,1.04099]
[1742228239754,0.7004,1921.5,1921.2,3.2078]
[1742228239755,40.8,1921.6,1921.5,1.04093]
[1742228240463,3.59580336,1921.7,1921.4,4.5237]
[1742228240663,3.59580336,1921.7,1921.5,3.0433]
[1742228240858,3.59580336,1921.7,1921.6,2.35678]
[1742228241060,44.39580336,1921.7,1921.6,1.3159]
[1742228241465,44.39580336,1921.7,1921.6,2.35678]
[1742228241762,44.39480336,1921.7,1921.6,2.35678]
[1742228242365,40.80780336,1921.7,1921.6,2.35678]
[1742228243660,1.04059,1922.2,1921.6,5.56458]
[1742228243855,0.79342291,1922.1,1921.8,1.04074]
[1742228244055,1.04073,1921.9,1921.7,1.04078]
[1742228244253,1.04073,1921.9,1921.7,2.45708]
[1742228244457,2.37407,1921.8,1921.7,1.4163]
[1742228244653,2.37407,1921.8,1921.4,3.2078]
[1742228244654,1.04094,1921.5,1921.3,7.00702]
[1742228244962,1.3849,1921.4,1921.3,2.44072]
[1742228245955,4.6269,1921.6,1921.4,1.04096]
[1742228246157,1.3849,1921.5,1921.3,2.4407]
[1742228246361,1.3849,1921.5,1921.4,1.04099]
[1742228246557,1.3849,1921.5,1921.4,2.44069]
[1742228246963,42.1849,1921.5,1921.4,1.3997]
[1742228247163,43.22583,1921.5,1921.4,1.3997]
[1742228247360,42.1849,1921.5,1921.4,1.3997]
[1742228248266,42.1849,1921.5,1921.4,2.44069]
[1742228252969,2.42583,1921.5,1921.4,2.44069]
[1742228253266,2.42583,1921.5,1921.2,3.21560336]
[1742228253267,1.041,1921.4,1921.2,1.04886336]
[1742228253468,9.2128,1921.4,1921.3,1.3511]
[1742228253672,1.69584,1921.3,1921.2,1.45820336]
[1742228253971,3.13734,1921.3,1921.2,0.00780336]
[1742228254376,6.34514,1921.3,1921.2,0.00780336]
[1742228254675,7.09770847,1921.3,1921.2,0.00780336]
[1742228255676,3.88990847,1921.3,1921.2,0.00780336]
[1742228255870,2.18246713,1921.3,1921.2,1.04889336]
[1742228256076,2.0963,1921.3,1921.2,1.04889336]
[1742228256375,5.6813,1921.3,1921.2,1.04889336]
[1742228256671,5.6813,1921.3,1921.2,2.49929336]
[1742228259371,2.0963,1921.3,1921.2,2.49929336]
[1742228259571,41.5105,1921.5,1921.4,1.04099]
[1742228259873,46.13643,1921.5,1921.4,1.04099]
[1742228260175,1.04104,1921.3,1921.2,0.00780336]
[1742228260377,4.62604,1921.3,1921.2,0.00780336]
[1742228260676,4.71220479,1921.3,1921.2,0.00780336]
[1742228260977,6.82910479,1921.3,1921.2,0.00780336]
[1742228261366,2.60277,1921.2,1920.6,1.3647]
[1742228261567,4.24909,1920.9,1920.7,2.38105]
[1742228261771,4.2517,1920.8,1920.7,2.38105]
[1742228262081,3.585,1920.8,1920.7,2.38105]
[1742228264573,6.04651,1920.8,1920.7,2.38105]
[1742228264970,5.0052,1920.8,1920.7,2.38105]
[1742228265168,3.585,1920.8,1920.7,2.38105]
[1742228266370,6.05741,1920.8,1920.7,2.38105]
[1742228266570,5.0161,1920.8,1920.7,2.38105]
[1742228266771,6.05741,1920.8,1920.7,2.38105]
[1742228267569,6.05741,1920.8,1920.7,1.3397]
[1742228267775,1.04137,1920.7,1920.6,0.00780336]
[1742228267975,2.47247,1920.7,1920.6,0.00780336]
[1742228268280,3.17337,1920.7,1920.6,0.00780336]
[1742228268775,3.2595664,1920.7,1920.6,0.00780336]
[1742228269874,1.04153,1920.4,1920.3,1.3727]
[1742228270181,1.04153,1920.4,1920.0,1.04173]
[1742228270182,1.0417,1920.1,1920.0,1.04173]
[1742228270380,4.62766,1920.2,1920.1,1.3727]
[1742228270581,7.83546,1920.2,1920.1,1.3727]
[1742228270777,50.00866,1920.2,1920.1,1.3727]
[1742228270983,50.00866,1920.2,1920.1,2.41439]
[1742228271280,50.00866,1920.2,1920.1,1.3727]
[1742228271480,48.967,1920.2,1920.1,2.41439]
[1742228271686,3.2078,1920.5,1920.1,1.3727]
[1742228271874,3.586,1920.4,1920.3,1.04158]
[1742228272078,3.586,1920.4,1920.3,3.07948]
[1742228272778,3.586,1920.4,1920.3,3.76848]
[1742228273582,3.9213,1920.7,1920.4,2.60375]
[1742228273884,3.2078,1920.7,1920.6,1.04142]
[1742228276385,4.24917,1920.7,1920.6,1.04142]
[1742228276686,2.44267,1920.7,1920.6,1.04142]
[1742228278288,2.44267,1920.7,1920.5,1.3396]
[1742228278289,1.04142,1920.6,1920.5,2.38104]
[1742228278478,8.2106,1920.6,1920.3,7.70585]
[1742228278788,8.2106,1920.6,1920.3,7.00753]
[1742228278789,1.76601,1920.5,1920.3,7.00753]
[1742228278989,1.76601,1920.5,1920.4,2.43653]
[1742228279182,0.7245,1920.5,1920.4,2.43653]
[1742228279387,3.586,1920.5,1920.4,2.43653]
[1742228279686,3.586,1920.6,1920.4,1.395]
[1742228279884,3.586,1920.6,1920.5,1.04147]
[1742228281380,1.04137,1920.7,1920.6,1.04142]
[1742228281582,8.55965,1920.8,1920.7,1.04137]
[1742228282381,7.5183,1920.8,1920.7,1.04137]
[1742228282590,3.9323,1920.8,1920.7,1.04137]
[1742228282786,0.00780336,1920.9,1920.8,1.04131]
[1742228287594,0.00780336,1920.9,1920.8,4.24911]
[1742228287795,3.2078,1921.7,1921.6,1.04088]
[1742228288098,44.6655,1921.7,1921.5,1.04089]
[1742228288300,1.04094,1921.5,1921.4,1.04095]
[1742228288501,1.04094,1921.5,1921.4,2.47225]
[1742228289493,1.04871336,1921.6,1921.4,2.47225]
[1742228289694,1.04871336,1921.6,1921.5,2.47223]
[1742228290093,3.59280336,1921.6,1921.5,2.47223]
[1742228290288,0.00780336,1921.6,1921.5,2.47223]
[1742228291795,4.63368336,1921.6,1921.5,1.4313]
[1742228292907,3.59280336,1921.6,1921.5,2.47223]
[1742228293502,4.63368336,1921.6,1921.5,1.4313]
[1742228293702,4.63368336,1921.6,1921.5,2.47223]
[1742228294305,4.63368336,1921.6,1921.3,1.37940336]
[1742228294306,6.88675164,1921.6,1921.4,1.04097]
[1742228294504,1.04099,1921.4,1921.3,0.00780336]
[1742228294703,7.91894278,1921.4,1921.3,0.00780336]
[1742228295008,1.0412,1921.0,1920.9,0.7164]
[1742228295206,3.584,1921.0,1920.9,1.75766]
[1742228295399,4.6252,1921.0,1920.9,0.7164]
[1742228295709,4.6252,1921.0,1920.9,1.75766]
[1742228295907,3.584,1921.0,1920.9,3.18596]
[1742228296310,3.584,1921.0,1920.9,2.1447]
[1742228296798,3.584,1921.0,1920.9,3.18596]
[1742228297001,4.6252,1921.0,1920.9,2.1447]
[1742228298001,5.9671,1921.0,1920.9,2.1447]
[1742228298196,5.9671,1921.0,1920.9,3.18596]
[1742228298403,5.9671,1921.0,1920.9,2.1447]
[1742228298702,4.9259,1921.0,1920.9,3.18596]
[1742228298900,3.584,1921.1,1921.0,1.0412]
[1742228299101,3.584,1921.1,1921.0,2.4046]
[1742228299300,3.584,1921.3,1921.2,1.04109]
[1742228299504,1.3306,1921.5,1921.3,1.04104]
[1742228299505,1.3779,1921.4,1921.3,1.04104]
[1742228299707,2.41892,1921.4,1921.2,2.41735]
[1742228299906,1.3779,1921.4,1921.3,2.41734]
[1742228300411,2.41889,1921.4,1921.3,2.41734]
[1742228300605,1.3779,1921.4,1921.3,2.41734]
[1742228301802,1.3779,1921.4,1920.8,0.00780336]
[1742228302008,1.04111,1921.2,1921.0,1.0412]
[1742228302202,1.04111,1921.2,1921.1,1.4323]
[1742228302410,1.04115,1921.1,1920.9,1.04122]
[1742228302611,1.76335,1921.1,1920.9,2.47352]
[1742228302908,3.584,1921.0,1920.9,2.47352]
[1742228303108,6.7918,1921.2,1921.1,1.04115]
[1742228303307,3.584,1921.2,1921.1,1.04115]
[1742228303708,7.514,1921.4,1921.3,1.04104]
[1742228304008,6.7918,1921.4,1921.3,1.04104]
[1742228304201,3.584,1921.4,1921.3,1.04104]
[1742228304616,3.584,1921.4,1921.2,0.6853]
[1742228304617,4.62503,1921.4,1921.2,1.72637]
[1742228304910,4.62503,1921.4,1921.2,0.6853]
[1742228305106,3.584,1921.4,1921.3,1.04104]
[1742228305509,3.2078,1921.5,1921.4,1.04099]
[1742228305811,6.7918,1921.5,1921.4,1.04099]
[1742228307003,3.2078,1921.5,1921.4,1.04099]
[1742228307513,4.24839,1922.2,1921.6,2.60207]
[1742228307704,0.08612922,1922.1,1921.9,1.0407]
[1742228307903,1.12677922,1922.1,1921.9,1.0407]
[1742228308200,47.5918,1922.2,1921.7,0.6855]
[1742228308403,1.12675084,1922.1,1921.9,1.04069]
[1742228308599,1.04063,1922.1,1921.9,1.04069]
[1742228309013,1.04062,1922.1,1921.9,1.04067]
[1742228309314,47.59960336,1922.2,1921.8,0.00780336]
[1742228309514,4.9251,1922.0,1921.8,1.04854336]
[1742228309719,8.5091,1922.0,1921.8,1.04854336]
[1742228311015,8.50908,1922.0,1921.8,1.04854336]
[1742228313618,1.04072,1921.9,1921.8,0.00780336]
[1742228314022,5.33302,1921.9,1921.8,0.00780336]
[1742228314414,6.76322,1921.9,1921.8,0.00780336]
[1742228314920,5.7225,1921.9,1921.5,1.429]
[1742228315217,1.04085,1921.7,1921.5,2.4699]
[1742228315421,5.0132,1921.6,1921.5,2.4699]